fUST/lending_fUST_20241003
["ID","MTS","AMOUNT","RATE_DAILY","PERIOD"]
[339754416,1727944232372,-502.48212966,0.000136,2]
[339754418,1727944232382,-306.0,0.000136,2]
[339754420,1727944232391,-209.5065215,0.000136,2]
[339754422,1727944232401,-153.0,0.000136,2]
[339754424,1727944232410,-153.0,0.000136,2]
[339754426,1727944232418,-209.5065215,0.000136,2]
[339754427,1727944232428,-412.778192,0.000136,2]
[339754429,1727944232438,-153.0,0.000136,2]
[339754431,1727944232448,-412.778192,0.000136,2]
[339754433,1727944232457,-209.5065215,0.000136,2]
[339754435,1727944232467,-153.0,0.000136,2]
[339754437,1727944232476,-153.0,0.000136,2]
[339754439,1727944232490,-209.5065215,0.000136,2]
[339754441,1727944232500,-554.6598172,0.000136,2]
[339754443,1727944232509,-153.0,0.000136,2]
[339754444,1727944232518,-7974.07196367,0.000136,2]
[339754469,1727944237157,209.0,0.000209,120]
[339754511,1727944238401,-150.0,0.000127,2]
[339754513,1727944238415,-3608.93125,0.000136,2]
[339754515,1727944238428,-800.0,0.000136,2]
[339754517,1727944238468,-363.43898714,0.000136,2]
[339754518,1727944238484,-9056.7,0.000136,2]
[339754538,1727944242000,-662.26949,0.00013599,2]
[339754539,1727944242011,-14815.40779919,0.000136,2]
[339754540,1727944242021,-350.55244638,0.00013673,2]
[339754541,1727944242032,-502.3390862,0.00013673,2]
[339754542,1727944242043,-500.0,0.00013673,2]
[339754543,1727944242054,-500.0,0.00013673,2]
[339754544,1727944242065,-23108.6323164,0.00013678,2]
[339754545,1727944242078,-150.0,0.00013682,2]
[339754546,1727944242088,-525.0,0.00013682,2]
[339754547,1727944242100,-27374.88459817,0.00013688,2]
[339754603,1727944243443,-1218.0,0.00013672,2]
[339754604,1727944243455,-3481.99999998,0.00013688,2]
[339754666,1727944246386,-606.28979745,0.00013598,2]
[339754667,1727944246396,-500.0,0.00013673,2]
[339754669,1727944246405,-3573.71020261,0.00013688,2]
[339754699,1727944284717,-150.0,0.00013,20]
[339754700,1727944323446,233.10177721,0.00010201,2]
[339754701,1727944323471,246.45186126,0.00010201,2]
[339754702,1727944323494,18.70530067,0.00010201,2]
[339754706,1727944579560,500.0,0.00010201,2]
[339754707,1727944588930,239.0,0.000209,120]
[339754733,1727944981872,500.0,0.00010201,2]
[339754736,1727944999230,26834.27641425,0.0002101,120]
[339754771,1727945231131,-286.08,0.00010959,2]
[339754772,1727945231157,-238.4,0.00010959,2]
[339754773,1727945231180,-198.67,0.00010959,2]
[339754774,1727945231204,-165.56,0.00010959,2]
[339754775,1727945231229,-300.0,0.00011615,2]
[339754776,1727945231255,-300.0,0.00011615,2]
[339754777,1727945231286,-596.86276659,0.00011616,2]
[339754780,1727945245078,500.0,0.00010201,2]
[339754786,1727945355143,-827.8,0.00010959,2]
[339754787,1727945355164,-300.0,0.00011615,2]
[339754788,1727945355184,-300.0,0.00011615,2]
[339754789,1727945355210,-24303.13723341,0.00011616,2]
[339754790,1727945355232,-3000.0,0.00012022,2]
[339754791,1727945355256,-250.0,0.00012087,2]
[339754792,1727945355279,-250.0,0.00012095,2]
[339754793,1727945355301,-150.0,0.000121,2]
[339754794,1727945355322,-780.49649868,0.000121,2]
[339754795,1727945355345,-250.0,0.0001212,2]
[339754796,1727945355372,-500.0,0.00012124,2]
[339754797,1727945355394,-519.8711413,0.00012124,2]
[339754798,1727945355415,-1137.25734233,0.00012124,2]
[339754799,1727945355435,-2871.2986912,0.00012139,2]
[339754800,1727945355457,-250.0,0.00012153,2]
[339754801,1727945355478,-250.0,0.00012186,2]
[339754802,1727945355499,-250.0,0.00012219,2]
[339754803,1727945355521,-250.0,0.00012253,2]
[339754804,1727945355542,-250.0,0.00012286,2]
[339754805,1727945355564,-250.0,0.00012319,2]
[339754806,1727945355586,-250.0,0.00012352,2]
[339754807,1727945355608,-250.0,0.00012385,2]
[339754808,1727945355638,-172.43919626,0.000124,2]
[339754809,1727945355664,-250.0,0.00012418,2]
[339754810,1727945355686,-250.0,0.00012451,2]
[339754811,1727945355716,-250.0,0.00012485,2]
[339754812,1727945355738,-966.95470182,0.000125,2]
[339754820,1727945365221,-2938.5274502,0.00012134,2]
[339754851,1727945432446,-33.04529818,0.000125,2]
[339754853,1727945432456,-250.0,0.00012518,2]
[339754854,1727945432466,-215.21364096,0.00012551,2]
[339754859,1727945432504,-34.78635904,0.00012551,2]
[339754861,1727945432515,-193.29034493,0.00012581,2]
[339754863,1727945432524,-250.0,0.00012584,2]
[339754865,1727945432534,-476.135521,0.00012603,2]
[339754867,1727945432544,-250.0,0.00012617,2]
[339754869,1727945432554,-250.0,0.0001265,2]
[339754871,1727945432565,-250.0,0.00012684,2]
[339754873,1727945432575,-250.0,0.00012717,2]
[339754875,1727945432585,-500.0,0.0001273,2]
[339754877,1727945432595,-500.0,0.0001292,2]
[339754879,1727945432606,-500.0,0.00012941,2]
[339754881,1727945432617,-300.0,0.00012977,2]
[339754883,1727945432627,-412.5224329,0.00012978,2]
[339754885,1727945432637,-300.0,0.00012999,2]
[339754905,1727945432867,-1000.0,0.00013,2]
[339754906,1727945432877,-568.06534213,0.000132,2]
[339755011,1727945440455,-431.93465787,0.000132,2]
[339755013,1727945440466,-1191.18412061,0.00013278,2]
[339755015,1727945440476,-7195.04478571,0.00013279,2]
[339755017,1727945440487,-500.0,0.0001342,2]
[339755018,1727945440499,-279.927319,0.00013422,2]
[339755020,1727945440509,-1000.0,0.00013431,2]
[339755022,1727945440519,-1000.0,0.0001349,2]
[339755024,1727945440529,-1000.0,0.00013494,2]
[339755025,1727945440538,-1000.0,0.00013495,2]
[339755027,1727945440548,-1000.0,0.000135,2]
[339755029,1727945440559,-1000.0,0.00013503,2]
[339755031,1727945440569,-251.48149109,0.00013506,2]
[339755033,1727945440580,-153.8653805,0.00013509,2]
[339755034,1727945440589,-153.0,0.00013509,2]
[339755035,1727945440601,-153.0,0.00013509,2]
[339755036,1727945440611,-338.89811839,0.00013511,2]
[339755037,1727945440622,-1000.0,0.00013526,2]
[339755038,1727945440632,-251.48149108,0.00013527,2]
[339755039,1727945440644,-251.48149108,0.00013547,2]
[339755040,1727945440654,-251.48149108,0.00013568,2]
[339755041,1727945440664,-1000.0,0.00013578,2]
[339755042,1727945440673,-520.33099912,0.00013578,2]
[339755043,1727945440687,-251.48149108,0.00013588,2]
[339755044,1727945440697,-4253.35481688,0.00013588,2]
[339755045,1727945440708,-527.20085041,0.0001359,2]
[339755046,1727945440718,-3004.20094791,0.0001359,2]
[339755047,1727945440727,-1000.0,0.00013593,2]
[339755048,1727945440737,-3223.4653806,0.00013597,2]
[339755049,1727945440748,-786.80244631,0.00013598,2]
[339755050,1727945440758,-12691.49857882,0.00013598,2]
[339755051,1727945440769,-4500.0,0.000136,2]
[339755052,1727945440779,-150.0,0.000136,2]
[339755053,1727945440790,-150.0,0.000136,3]
[339755054,1727945440802,-150.0,0.000136,10]
[339755055,1727945440812,-225.0,0.000136,2]
[339755056,1727945440821,-3760.92258961,0.000136,2]
[339755085,1727945443496,-886.89395378,0.000136,2]
[339755087,1727945443508,-6547.5,0.000136,2]
[339755088,1727945443666,-13824.1224736,0.000136,2]
[339755099,1727945446513,-289.84,0.000136,2]
[339755100,1727945446555,-281.57905438,0.000136,2]
[339755102,1727945453482,207.55291212,0.00010206,2]
[339755103,1727945453509,245.0,0.00010206,2]
[339755104,1727945453532,4031.74771769,0.00010206,2]
[339755106,1727945518594,500.0,0.00010201,2]
[339755107,1727945519714,228.0,0.000209,120]
[339755108,1727945986571,500.0,9.105e-05,2]
[339755110,1727946276950,180.2065,9.877e-05,2]
[339755114,1727946331733,509.5689537,0.00010129,2]
[339755115,1727946347392,285.336745,9.999e-05,2]
[339755117,1727946384414,5846.8849515,0.0001007,2]
[339755118,1727946393227,500.0,9.105e-05,2]
[339755119,1727946400891,250.0,0.00010041,2]
[339755120,1727946401091,250.0,0.00010069,2]
[339755121,1727946401445,250.0,0.00010097,2]
[339755122,1727946401647,250.0,0.00010124,2]
[339755123,1727946401868,250.0,0.00010152,2]
[339755124,1727946402086,250.0,0.00010179,2]
[339755125,1727946417311,201.7279374,9.63e-05,2]
[339755126,1727946461378,3127.7,0.00010206,2]
[339755127,1727946486581,3000.0,9.589e-05,2]
[339755128,1727946490776,1147.1603882,9.589e-05,2]
[339755134,1727946518641,500.0,9.8e-05,2]
[339755135,1727946519000,500.0,9.8e-05,2]
[339755136,1727946519475,500.0,9.8e-05,2]
[339755137,1727946519830,488.15341998,9.8e-05,2]
[339755138,1727946520461,250.0,9.605e-05,2]
[339755139,1727946533557,500.0,9.105e-05,2]
[339755140,1727946569377,-250.0,0.00010207,2]
[339755141,1727946569401,-250.0,0.00010234,2]
[339755142,1727946569426,-250.0,0.00010262,2]
[339755143,1727946569448,-250.0,0.00010289,2]
[339755144,1727946569470,-250.0,0.00010317,2]
[339755145,1727946569492,-250.0,0.00010344,2]
[339755146,1727946569514,-250.0,0.00010372,2]
[339755147,1727946569537,-250.0,0.00010399,2]
[339755148,1727946569559,-250.0,0.00010427,2]
[339755149,1727946569581,-181.67174533,0.00010437,2]
[339755150,1727946569603,-250.0,0.00010454,2]
[339755151,1727946569624,-2417.38567994,0.00010455,2]
[339755152,1727946569645,-500.0,0.00010475,2]
[339755153,1727946569673,-250.0,0.00010482,2]
[339755154,1727946569699,-250.0,0.0001051,2]
[339755155,1727946569721,-250.0,0.00010537,2]
[339755156,1727946569742,-250.0,0.00010565,2]
[339755157,1727946569762,-844.4856386,0.00010648,2]
[339755158,1727946569783,-181.67174531,0.00010705,2]
[339755159,1727946569804,-180.2065,0.00010917,2]
[339755160,1727946569825,-300.0,0.00010958,2]
[339755161,1727946569845,-300.0,0.00010958,2]
[339755162,1727946569867,-929.78,0.00010959,2]
[339755163,1727946569887,-831.74,0.00010959,2]
[339755164,1727946569908,-693.12,0.00010959,2]
[339755165,1727946569934,-577.6,0.00010959,2]
[339755166,1727946569956,-481.33,0.00010959,2]
[339755167,1727946569978,-401.11,0.00010959,2]
[339755168,1727946570002,-334.26,0.00010959,2]
[339755169,1727946570023,-278.55,0.00010959,2]
[339755170,1727946570044,-232.13,0.00010959,2]
[339755171,1727946570064,-181.67174531,0.00010973,2]
[339755172,1727946570085,-24900.0,0.00011072,2]
[339755173,1727946570106,-866.96127706,0.00011517,2]
[339755174,1727946570126,-500.0,0.00011517,2]
[339755175,1727946570147,-420.0,0.00012042,2]
[339755176,1727946570171,-420.0,0.00012054,2]
[339755177,1727946570192,-487.02940715,0.00012124,2]
[339755178,1727946573182,-193.44,0.00010959,2]
[339755179,1727946573203,-170.83265725,0.0001107,2]
[339755181,1727946581693,209.0,0.000209,120]
[339755221,1727946632750,-31.16734275,0.0001107,2]
[339755223,1727946632761,-202.0,0.0001184,2]
[339755225,1727946632772,-12.97059285,0.00012124,2]
[339755226,1727946632783,-189.538033,0.00012503,2]
[339755228,1727946632793,-189.538033,0.00012534,2]
[339755230,1727946632802,-189.538033,0.00012565,2]
[339755231,1727946632812,-452.328745,0.00012603,2]
[339755234,1727946632822,-202.0,0.0001262,2]
[339755235,1727946632831,-185.35916345,0.0001273,2]
[339755238,1727946632842,-163.73619785,0.00012841,2]
[339755240,1727946632851,-500.0,0.0001292,2]
[339755242,1727946632861,-441.4339471,0.00012941,2]
[339755244,1727946632871,-825.402048,0.00013078,2]
[339755246,1727946632881,-500.0,0.00013215,2]
[339755248,1727946632891,-723.87396731,0.00013328,2]
[339755250,1727946632900,-300.0,0.00013352,2]
[339755252,1727946632910,-300.0,0.00013352,2]
[339755254,1727946632920,-612.57519669,0.00013353,2]
[339755255,1727946632932,-290.835,0.00013353,2]
[339755256,1727946632943,-5573.5498791,0.00013353,2]
[339755257,1727946632953,-202.0,0.0001339,2]
[339755258,1727946632963,-151.0,0.000134,2]
[339755259,1727946632977,-857.238953,0.0001342,2]
[339755260,1727946632986,-279.927319,0.00013422,2]
[339755261,1727946632996,-600.0,0.00013435,2]
[339755262,1727946633006,-480.14429999,0.00013491,2]
[339755263,1727946633016,-1000.0,0.00013505,2]
[339755264,1727946633026,-1000.0,0.00013508,2]
[339755265,1727946633036,-480.14429996,0.0001351,2]
[339755266,1727946633047,-480.14429996,0.0001353,2]
[339755267,1727946633057,-480.14429996,0.00013549,2]
[339755268,1727946633068,-480.14429996,0.00013568,2]
[339755269,1727946633078,-1000.0,0.00013568,2]
[339755270,1727946633088,-1000.0,0.0001357,2]
[339755271,1727946633098,-930.58406734,0.00013578,2]
[339755272,1727946633108,-5423.71537,0.00013587,2]
[339755273,1727946633118,-4253.35481688,0.00013588,2]
[339755274,1727946633128,-12691.49857882,0.00013588,2]
[339755275,1727946633138,-577.97418471,0.00013588,2]
[339755276,1727946633148,-43576.9687822,0.0001359,2]
[339755277,1727946633158,-338.89811839,0.00013591,2]
[339755278,1727946633168,-11342.56843043,0.000136,2]
[339755279,1727946633186,-1505.815,0.000136,2]
[339755280,1727946633198,-2480.16572685,0.000136,2]
[339755281,1727946633207,-2968.40158434,0.00013617,2]
[339755293,1727946638993,-189.84854928,0.00013617,2]
[339755295,1727946639008,-91.2105596,0.00013617,2]
[339755299,1727946639029,-17360.5423826,0.00013617,2]
[339755301,1727946639039,-177.532,0.00013627,2]
[339755302,1727946639048,-191.77438365,0.00013627,2]
[339755304,1727946639057,-8176.20578067,0.00013634,2]
[339755352,1727946640671,-9275.54716153,0.00013634,2]
[339755354,1727946640681,-151.0,0.00013634,2]
[339755356,1727946640702,-1000.0,0.0001364,2]
[339755358,1727946640713,-151.0,0.00013644,2]
[339755360,1727946640723,-546.714611,0.00013644,2]
[339755361,1727946640733,-546.714611,0.00013644,2]
[339755362,1727946640743,-228.752782,0.00013644,2]
[339755363,1727946640752,-151.0,0.00013644,2]
[339755364,1727946640763,-213.170715,0.00013644,2]
[339755365,1727946640774,-228.752782,0.00013644,2]
[339755366,1727946640783,-213.170715,0.00013644,2]
[339755367,1727946640792,-151.0,0.00013644,2]
[339755368,1727946640803,-270.786159,0.00013644,2]
[339755369,1727946640812,-151.472298,0.00013644,2]
[339755370,1727946640822,-518.931145,0.00013644,2]
[339755371,1727946640832,-518.931145,0.00013644,2]
[339755372,1727946640841,-378.350758,0.00013644,2]
[339755373,1727946640851,-378.350758,0.00013644,2]
[339755374,1727946640860,-151.0,0.00013644,2]
[339755375,1727946640869,-151.0,0.00013644,2]
[339755376,1727946640879,-151.0,0.00013644,2]
[339755377,1727946640888,-3755.76211582,0.00013645,2]
[339755378,1727946640898,-35314.6306908,0.00013646,2]
[339755379,1727946640911,-3834.36575158,0.00013646,2]
[339755380,1727946640923,-2074.48999662,0.00013646,2]
[339755381,1727946640934,-916.14411214,0.00013646,2]
[339755429,1727946644163,-1437.33823106,0.00013646,2]
[339755430,1727946644173,-151.0,0.00013646,2]
[339755431,1727946644183,-151.590543,0.00013648,2]
[339755432,1727946644192,-13703.8995481,0.00013649,2]
[339755513,1727946678603,500.0,9.105e-05,2]
[339755521,1727947353197,174.745206,9.908e-05,2]
[339755758,1727947638167,-191.85668307,0.00010745,2]
[339755760,1727947640150,161.0,0.000209,120]
[339755762,1727947644102,250.0,9.981e-05,2]
[339755764,1727947648145,-58.14331693,0.00010745,2]
[339755765,1727947648172,-250.0,0.00010775,2]
[339755766,1727947648196,-250.0,0.00010804,2]
[339755767,1727947648219,-250.0,0.00010834,2]
[339755768,1727947648450,-250.0,0.00010863,2]
[339755769,1727947648475,-250.0,0.00010893,2]
[339755770,1727947648498,-250.0,0.00010922,2]
[339755771,1727947648522,-250.0,0.00010951,2]
[339755772,1727947648545,-161.2,0.00010959,2]
[339755773,1727947648567,-806.01,0.00010959,2]
[339755774,1727947648589,-250.0,0.00010981,2]
[339755775,1727947648613,-250.0,0.0001101,2]
[339755776,1727947648636,-250.0,0.0001104,2]
[339755777,1727947648660,-250.0,0.00011069,2]
[339755778,1727947648684,-300.0,0.00011086,2]
[339755779,1727947648706,-300.0,0.00011086,2]
[339755780,1727947648727,-76.13289141,0.00011087,2]
[339755796,1727947768115,-300.0,0.00011086,2]
[339755797,1727947768154,-300.0,0.00011086,2]
[339755798,1727947768186,-5585.2009433,0.00011087,2]
[339755799,1727947768264,-19238.66616529,0.00011087,2]
[339755800,1727947768292,-250.0,0.00011099,2]
[339755801,1727947768315,-250.0,0.00011128,2]
[339755802,1727947768339,-250.0,0.00011158,2]
[339755803,1727947768362,-250.0,0.00011187,2]
[339755804,1727947768660,-250.0,0.00011217,2]
[339755805,1727947768686,-250.0,0.00011246,2]
[339755806,1727947768709,-250.0,0.00011276,2]
[339755807,1727947768730,-151.0,0.0001128,2]
[339755808,1727947768753,-250.0,0.00011305,2]
[339755809,1727947768779,-2932.5892752,0.00011346,2]
[339755810,1727947768799,-449.51000821,0.00011597,2]
[339755811,1727947768819,-500.0,0.00011845,2]
[339755812,1727947768840,-151.0,0.0001207,2]
[339755813,1727947768861,-420.0,0.00012181,2]
[339755814,1727947768882,-420.0,0.00012194,2]
[339755815,1727947768904,-398.5556876,0.000123,2]
[339755816,1727947768925,-162.65286,0.00012344,2]
[339755817,1727947768947,-162.65286,0.00012347,2]
[339755818,1727947768969,-162.65286,0.00012351,2]
[339755819,1727947768990,-162.65286,0.00012355,2]
[339755820,1727947769011,-162.65286,0.00012359,2]
[339755821,1727947769035,-162.65286,0.00012363,2]
[339755822,1727947769057,-162.65286,0.00012367,2]
[339755823,1727947769077,-162.65286,0.00012371,2]
[339755824,1727947769098,-162.65286,0.00012375,2]
[339755825,1727947769121,-162.65286,0.00012378,2]
[339755826,1727947769145,-162.65286,0.00012382,2]
[339755827,1727947769165,-162.65286,0.00012386,2]
[339755828,1727947769186,-162.65286,0.0001239,2]
[339755829,1727947769208,-162.65286,0.00012394,2]
[339755830,1727947769230,-162.65286,0.00012398,2]
[339755831,1727947769250,-162.65286,0.00012402,2]
[339755832,1727947769273,-162.65286,0.00012405,2]
[339755841,1727947824678,500.0,0.00010201,2]
[339755842,1727947828017,5213.61588503,0.00012347,2]
[339755890,1727947831834,-273.20253863,0.00012347,2]
[339755892,1727947831847,-19413.18157634,0.00012347,2]
[339755894,1727947831857,-429.712308,0.00012603,2]
[339755896,1727947831867,-151.0,0.0001286,2]
[339755898,1727947831876,-300.0,0.00012899,2]
[339755900,1727947831886,-300.0,0.00012899,2]
[339755902,1727947831895,-4932.7147383,0.000129,2]
[339755904,1727947831905,-4932.71473826,0.000129,2]
[339755906,1727947831914,-500.0,0.00012941,2]
[339755908,1727947831923,-7195.04478571,0.00013205,2]
[339755910,1727947831933,-153.0,0.0001326,2]
[339755912,1727947831943,-153.0,0.0001326,2]
[339755914,1727947831953,-153.0,0.0001326,2]
[339755916,1727947831963,-153.0,0.0001326,2]
[339755918,1727947831972,-151.05550298,0.00013314,2]
[339755920,1727947831981,-1000.0,0.00013471,2]
[339755922,1727947831993,-1000.0,0.00013472,2]
[339755924,1727947832004,-1000.0,0.00013508,2]
[339755926,1727947832014,-1000.0,0.00013538,2]
[339755928,1727947832024,-1005.10461174,0.00013538,2]
[339755931,1727947832036,-4836.15488682,0.00013539,2]
[339755973,1727947838087,-7801.0505492,0.00013539,2]
[339755974,1727947838111,-1411.89046829,0.00013539,2]
[339755975,1727947838120,-299.6733388,0.00013539,2]
[339755976,1727947838131,-1000.0,0.0001356,2]
[339755977,1727947838145,-150.0,0.00013582,2]
[339755978,1727947838155,-1000.0,0.00013591,2]
[339755979,1727947838164,-188.07961651,0.000136,2]
[339755990,1727947839782,-6545.27805937,0.00013561,2]
[339755991,1727947839793,-29.33342306,0.000136,2]
[339755992,1727947839803,-150.112233,0.000136,2]
[339755993,1727947839814,-150.112233,0.000136,2]
[339755994,1727947839824,-150.112233,0.000136,2]
[339755995,1727947839834,-150.112233,0.000136,2]
[339755996,1727947839844,-21132.1932237,0.00013618,2]
[339755997,1727947839869,-13089.1557183,0.00013618,2]
[339755999,1727947839879,-78995.1116861,0.00013618,2]
[339756002,1727947839889,-151.0,0.00013618,2]
[339756005,1727947839899,-151.0,0.00013618,2]
[339756008,1727947839909,-151.0,0.00013618,2]
[339756011,1727947839919,-1579.12506681,0.00013628,2]
[339756013,1727947839929,-3755.76211582,0.00013628,2]
[339756015,1727947839938,-17110.674471,0.00013628,2]
[339756017,1727947839948,-39497.555843,0.00013628,2]
[339756019,1727947839958,-151.0,0.00013628,2]
[339756020,1727947839968,-151.0,0.00013628,2]
[339756021,1727947839978,-151.0,0.00013628,2]
[339756022,1727947839988,-151.0,0.00013628,2]
[339756023,1727947839997,-1484.489477,0.00013628,2]
[339756024,1727947840008,-1484.489477,0.00013628,2]
[339756025,1727947840017,-151.0,0.00013628,2]
[339756026,1727947840027,-151.0,0.00013628,2]
[339756027,1727947840037,-151.0,0.00013628,2]
[339756028,1727947840047,-1484.489477,0.00013628,2]
[339756029,1727947840056,-1484.489477,0.00013628,2]
[339756030,1727947840067,-813.984674,0.00013628,2]
[339756031,1727947840076,-813.984674,0.00013628,2]
[339756032,1727947840086,-813.984674,0.00013628,2]
[339756033,1727947840096,-813.984674,0.00013628,2]
[339756034,1727947840105,-546.714611,0.00013628,2]
[339756035,1727947840115,-546.714611,0.00013628,2]
[339756036,1727947840125,-546.714611,0.00013628,2]
[339756037,1727947840138,-546.714611,0.00013628,2]
[339756038,1727947840148,-151.0,0.00013628,2]
[339756039,1727947840158,-151.0,0.00013628,2]
[339756040,1727947840167,-585.561166,0.00013628,2]
[339756041,1727947840178,-585.561166,0.00013628,2]
[339756042,1727947840187,-585.561166,0.00013628,2]
[339756043,1727947840196,-585.561166,0.00013628,2]
[339756044,1727947840206,-518.931145,0.00013628,2]
[339756045,1727947840220,-518.931145,0.00013628,2]
[339756046,1727947840231,-518.931145,0.00013628,2]
[339756047,1727947840241,-518.931145,0.00013628,2]
[339756048,1727947840251,-151.0,0.00013628,2]
[339756049,1727947840261,-151.0,0.00013628,2]
[339756050,1727947840271,-151.0,0.00013628,2]
[339756051,1727947840280,-151.0,0.00013628,2]
[339756052,1727947840290,-151.0,0.00013628,2]
[339756053,1727947840300,-151.0,0.00013628,2]
[339756054,1727947840309,-152.060968,0.00013628,2]
[339756055,1727947840319,-151.0,0.00013628,2]
[339756056,1727947840329,-151.0,0.00013628,2]
[339756057,1727947840338,-151.0,0.00013628,2]
[339756058,1727947840347,-151.0,0.00013628,2]
[339756059,1727947840357,-151.0,0.00013628,2]
[339756060,1727947840366,-151.0,0.00013628,2]
[339756061,1727947840377,-151.0,0.00013628,2]
[339756062,1727947840386,-151.0,0.00013628,2]
[339756063,1727947840396,-151.0,0.00013628,2]
[339756064,1727947840406,-151.0,0.00013628,2]
[339756065,1727947840415,-151.0,0.00013628,2]
[339756066,1727947840425,-151.0,0.00013628,2]
[339756067,1727947840434,-151.0,0.00013628,2]
[339756068,1727947840444,-151.0,0.00013628,2]
[339756069,1727947840454,-151.0,0.00013628,2]
[339756070,1727947840463,-151.0,0.00013628,2]
[339756071,1727947840473,-151.0,0.00013628,2]
[339756072,1727947840483,-151.0,0.00013628,2]
[339756073,1727947840493,-151.0,0.00013628,2]
[339756074,1727947840503,-151.0,0.00013628,2]
[339756075,1727947840514,-151.0,0.00013628,2]
[339756076,1727947840523,-151.0,0.00013628,2]
[339756077,1727947840533,-151.0,0.00013628,2]
[339756078,1727947840542,-151.0,0.00013628,2]
[339756079,1727947840552,-151.0,0.00013628,2]
[339756080,1727947840562,-270.786159,0.00013628,2]
[339756081,1727947840572,-335.709671,0.00013628,2]
[339756082,1727947840581,-335.709671,0.00013628,2]
[339756083,1727947840591,-335.709671,0.00013628,2]
[339756084,1727947840601,-335.709671,0.00013628,2]
[339756085,1727947840610,-151.0,0.00013628,2]
[339756086,1727947840620,-151.0,0.00013628,2]
[339756087,1727947840630,-151.0,0.00013628,2]
[339756088,1727947840639,-151.0,0.00013628,2]
[339756089,1727947840649,-335.709671,0.00013628,2]
[339756090,1727947840659,-335.709671,0.00013628,2]
[339756091,1727947840668,-335.709671,0.00013628,2]
[339756092,1727947840679,-335.709671,0.00013628,2]
[339756093,1727947840689,-151.0,0.00013628,2]
[339756094,1727947840700,-151.0,0.00013628,2]
[339756095,1727947840709,-151.0,0.00013628,2]
[339756096,1727947840719,-151.0,0.00013628,2]
[339756097,1727947840730,-151.0,0.00013628,2]
[339756098,1727947840741,-213.170715,0.00013628,2]
[339756099,1727947840752,-374.084895,0.00013628,2]
[339756100,1727947840882,-213.170715,0.00013628,2]
[339756101,1727947840920,-213.170715,0.00013628,2]
[339756102,1727947840930,-213.170715,0.00013628,2]
[339756103,1727947840940,-374.084895,0.00013628,2]
[339756104,1727947840949,-374.084895,0.00013628,2]
[339756105,1727947840959,-374.084895,0.00013628,2]
[339756106,1727947840969,-374.084895,0.00013628,2]
[339756107,1727947840979,-213.170715,0.00013628,2]
[339756108,1727947840988,-213.170715,0.00013628,2]
[339756109,1727947841000,-213.170715,0.00013628,2]
[339756110,1727947841010,-213.170715,0.00013628,2]
[339756111,1727947841020,-374.084895,0.00013628,2]
[339756112,1727947841030,-374.084895,0.00013628,2]
[339756113,1727947841041,-374.084895,0.00013628,2]
[339756114,1727947841051,-378.350758,0.00013628,2]
[339756115,1727947841064,-374.084895,0.00013628,2]
[339756116,1727947841074,-378.350758,0.00013628,2]
[339756117,1727947841083,-374.084895,0.00013628,2]
[339756118,1727947841092,-378.350758,0.00013628,2]
[339756119,1727947841101,-378.350758,0.00013628,2]
[339756120,1727947841112,-378.350758,0.00013628,2]
[339756121,1727947841122,-378.350758,0.00013628,2]
[339756122,1727947841134,-378.350758,0.00013628,2]
[339756123,1727947841143,-378.350758,0.00013628,2]